[Event "Late Titled Tuesday Blitz February 8 2022"]
[White "Daianu, Cristian-Clement"]
[Black "Milosevic, Milos"]
[WhiteFideId "1208926"]
[BlackFideId "964875"]
[WhiteElo "2159"]
[BlackElo "2198"]
[Result "0-1"]
[Round "06"]
[TimeControl "180+1"]
[Date "2022.02.09"]
[WhiteClock "0:00:11"]
[BlackClock "0:00:41"]

1. d4 {[%clk 0:03:00]}  f5 {[%clk 0:02:59]} 2. Nc3 {[%clk 0:02:58]}  Nf6 {[%clk 0:02:58]} 3. Bg5 {[%clk 0:02:59]}  d5 {[%clk 0:02:57]} 4. Bxf6 {[%clk 0:02:55]}  exf6 {[%clk 0:02:57]} 5. e3 {[%clk 0:02:53]}  Nc6 {[%clk 0:02:56]} 6. Nge2 {[%clk 0:02:45]}  Be6 {[%clk 0:02:54]} 7. Ng3 {[%clk 0:02:45]}  Qd7 {[%clk 0:02:53]} 8. Bd3 {[%clk 0:02:45]}  g6 {[%clk 0:02:50]} 9. h4 {[%clk 0:02:45]}  h5 {[%clk 0:02:48]} 10. Nce2 {[%clk 0:02:41]}  O-O-O {[%clk 0:02:47]} 11. Nf4 {[%clk 0:02:40]}  Bf7 {[%clk 0:02:46]} 12. Qe2 {[%clk 0:02:35]}  Kb8 {[%clk 0:02:45]} 13. O-O-O {[%clk 0:02:34]}  Bd6 {[%clk 0:02:43]} 14. Nh3 {[%clk 0:02:16]}  Rde8 {[%clk 0:02:32]} 15. Qd2 {[%clk 0:02:16]}  Nb4 {[%clk 0:02:28]} 16. a3 {[%clk 0:02:10]}  Qa4 {[%clk 0:02:26]} 17. Kb1 {[%clk 0:02:08]}  Nxd3 {[%clk 0:02:23]} 18. Qxd3 {[%clk 0:02:09]}  Bxg3 {[%clk 0:02:18]} 19. fxg3 {[%clk 0:02:09]}  Re6 {[%clk 0:02:18]} 20. Nf4 {[%clk 0:02:07]}  Rb6 {[%clk 0:02:16]} 21. Qc3 {[%clk 0:02:01]}  Rd8 {[%clk 0:02:08]} 22. Nd3 {[%clk 0:02:00]}  Rdd6 {[%clk 0:02:04]} 23. Nc5 {[%clk 0:01:55]}  Qb5 {[%clk 0:02:03]} 24. Rhf1 {[%clk 0:01:46]}  Qe2 {[%clk 0:02:01]} 25. Qd2 {[%clk 0:01:39]}  Qb5 {[%clk 0:01:56]} 26. Qc3 {[%clk 0:01:14]}  Qe8 {[%clk 0:01:53]} 27. Rd3 {[%clk 0:01:05]}  Rbc6 {[%clk 0:01:49]} 28. Qd2 {[%clk 0:01:00]}  Rd8 {[%clk 0:01:43]} 29. Rb3 {[%clk 0:00:59]}  b6 {[%clk 0:01:42]} 30. Qd3 {[%clk 0:00:47]}  Ka8 {[%clk 0:01:34]} 31. Qa6 {[%clk 0:00:39]}  Rb8 {[%clk 0:01:33]} 32. Nd3 {[%clk 0:00:34]}  Rc4 {[%clk 0:01:27]} 33. Rb4 {[%clk 0:00:18]}  Qxe3 {[%clk 0:01:22]} 34. Rxc4 {[%clk 0:00:17]}  dxc4 {[%clk 0:01:23]} 35. Nb4 {[%clk 0:00:17]}  Qe2 {[%clk 0:01:17]} 36. Rc1 {[%clk 0:00:14]}  Be8 {[%clk 0:01:15]} 37. d5 {[%clk 0:00:13]}  Qxg2 {[%clk 0:01:04]} 38. Re1 {[%clk 0:00:13]}  Qxg3 {[%clk 0:00:59]} 39. Re7 {[%clk 0:00:13]}  c3 {[%clk 0:00:44]} 40. b3 {[%clk 0:00:11]}  Qg1+ {[%clk 0:00:42]} 41. Ka2 {[%clk 0:00:11]}  Qc1 {[%clk 0:00:41]} 0-1


[Site "https://www.chess.com"]

[Event "Late Titled Tuesday Blitz February 8 2022"]
[White "Debray, Christopher"]
[Black "Sarkar, Justin"]
[WhiteFideId "630810"]
[BlackFideId "2010011"]
[WhiteElo "2369"]
[BlackElo "2038"]
[Result "0-1"]
[Round "06"]
[TimeControl "180+1"]
[Date "2022.02.09"]
[WhiteClock "0:00:02"]
[BlackClock "0:00:02"]

1. d4 {[%clk 0:03:00]}  Nf6 {[%clk 0:02:59]} 2. c4 {[%clk 0:03:00]}  e6 {[%clk 0:02:58]} 3. g3 {[%clk 0:03:00]}  c5 {[%clk 0:02:39]} 4. Nf3 {[%clk 0:02:59]}  cxd4 {[%clk 0:02:24]} 5. Nxd4 {[%clk 0:03:00]}  Nc6 {[%clk 0:02:24]} 6. Bg2 {[%clk 0:03:00]}  Bc5 {[%clk 0:02:21]} 7. Nb3 {[%clk 0:02:56]}  Bb4+ {[%clk 0:02:19]} 8. Bd2 {[%clk 0:02:53]}  Be7 {[%clk 0:02:13]} 9. Nc3 {[%clk 0:02:53]}  O-O {[%clk 0:02:11]} 10. O-O {[%clk 0:02:46]}  b6 {[%clk 0:02:09]} 11. Bf4 {[%clk 0:02:41]}  Bb7 {[%clk 0:02:05]} 12. Bd6 {[%clk 0:02:34]}  Bxd6 {[%clk 0:01:33]} 13. Qxd6 {[%clk 0:02:35]}  Ne8 {[%clk 0:01:33]} 14. Qf4 {[%clk 0:02:28]}  d6 {[%clk 0:01:30]} 15. Rfd1 {[%clk 0:02:22]}  Qe7 {[%clk 0:01:29]} 16. Rd2 {[%clk 0:02:09]}  Ne5 {[%clk 0:01:24]} 17. Rc1 {[%clk 0:01:45]}  Bxg2 {[%clk 0:01:21]} 18. Kxg2 {[%clk 0:01:45]}  Rc8 {[%clk 0:01:20]} 19. Nd1 {[%clk 0:01:44]}  Nf6 {[%clk 0:01:09]} 20. Ne3 {[%clk 0:01:36]}  Rc7 {[%clk 0:00:37]} 21. Rcd1 {[%clk 0:01:34]}  Rfc8 {[%clk 0:00:32]} 22. Rxd6 {[%clk 0:01:29]}  Nxc4 {[%clk 0:00:27]} 23. Nxc4 {[%clk 0:01:25]}  Rxc4 {[%clk 0:00:27]} 24. Rd8+ {[%clk 0:01:00]}  Rxd8 {[%clk 0:00:24]} 25. Rxd8+ {[%clk 0:01:00]}  Qxd8 {[%clk 0:00:22]} 26. Qxc4 {[%clk 0:01:01]}  Qd5+ {[%clk 0:00:20]} 27. Qxd5 {[%clk 0:01:01]}  Nxd5 {[%clk 0:00:20]} 28. Kf3 {[%clk 0:00:52]}  Kf8 {[%clk 0:00:19]} 29. Ke4 {[%clk 0:00:50]}  Ke7 {[%clk 0:00:19]} 30. f4 {[%clk 0:00:45]}  Nb4 {[%clk 0:00:17]} 31. a3 {[%clk 0:00:45]}  Nc6 {[%clk 0:00:16]} 32. Nd4 {[%clk 0:00:43]}  Nxd4 {[%clk 0:00:11]} 33. Kxd4 {[%clk 0:00:44]}  Kd6 {[%clk 0:00:11]} 34. e4 {[%clk 0:00:31]}  f6 {[%clk 0:00:11]} 35. Kc4 {[%clk 0:00:29]}  Kc6 {[%clk 0:00:11]} 36. a4 {[%clk 0:00:23]}  a6 {[%clk 0:00:09]} 37. Kd4 {[%clk 0:00:16]}  Kd6 {[%clk 0:00:08]} 38. e5+ {[%clk 0:00:09]}  fxe5+ {[%clk 0:00:08]} 39. fxe5+ {[%clk 0:00:10]}  Kc6 {[%clk 0:00:08]} 40. b3 {[%clk 0:00:04]}  g6 {[%clk 0:00:04]} 41. h3 {[%clk 0:00:04]}  h6 {[%clk 0:00:03]} 42. h4 {[%clk 0:00:03]}  h5 {[%clk 0:00:03]} 43. Kc4 {[%clk 0:00:02]}  b5+ {[%clk 0:00:02]} 0-1


[Site "https://www.chess.com"]

[Event "Late Titled Tuesday Blitz February 8 2022"]
[White "Dobre, Claudiu-Cristian"]
[Black "Martin Duque, Jesus"]
[WhiteFideId "1211854"]
[BlackFideId "2208954"]
[WhiteElo "2207"]
[BlackElo "2243"]
[Result "1-0"]
[Round "06"]
[TimeControl "180+1"]
[Date "2022.02.09"]
[WhiteClock "0:00:15"]
[BlackClock "0:00:04"]

1. c4 {[%clk 0:03:00]}  b6 {[%clk 0:02:57]} 2. Nf3 {[%clk 0:03:00]}  Bb7 {[%clk 0:02:55]} 3. g3 {[%clk 0:03:01]}  Nf6 {[%clk 0:02:53]} 4. Bg2 {[%clk 0:03:01]}  g6 {[%clk 0:02:53]} 5. b4 {[%clk 0:02:59]}  Bg7 {[%clk 0:02:52]} 6. Bb2 {[%clk 0:02:59]}  O-O {[%clk 0:02:52]} 7. O-O {[%clk 0:02:59]}  e6 {[%clk 0:02:52]} 8. d3 {[%clk 0:02:56]}  d5 {[%clk 0:02:51]} 9. Nbd2 {[%clk 0:02:51]}  Qe7 {[%clk 0:02:51]} 10. Qb3 {[%clk 0:02:40]}  Rd8 {[%clk 0:02:48]} 11. Rac1 {[%clk 0:02:37]}  Na6 {[%clk 0:02:47]} 12. c5 {[%clk 0:02:23]}  c6 {[%clk 0:02:28]} 13. a4 {[%clk 0:01:58]}  bxc5 {[%clk 0:02:18]} 14. bxc5 {[%clk 0:01:54]}  Rab8 {[%clk 0:01:37]} 15. Be5 {[%clk 0:01:43]}  Nc7 {[%clk 0:01:31]} 16. Rb1 {[%clk 0:01:29]}  Nfe8 {[%clk 0:01:24]} 17. Bxg7 {[%clk 0:01:22]}  Kxg7 {[%clk 0:01:23]} 18. d4 {[%clk 0:01:03]}  f6 {[%clk 0:01:15]} 19. Rfe1 {[%clk 0:00:55]}  e5 {[%clk 0:01:10]} 20. e4 {[%clk 0:00:48]}  dxe4 {[%clk 0:00:56]} 21. Nxe4 {[%clk 0:00:48]}  f5 {[%clk 0:00:54]} 22. Nd6 {[%clk 0:00:48]}  Nxd6 {[%clk 0:00:37]} 23. Rxe5 {[%clk 0:00:36]}  Qf7 {[%clk 0:00:33]} 24. cxd6 {[%clk 0:00:33]}  Qxb3 {[%clk 0:00:32]} 25. Rxb3 {[%clk 0:00:31]}  Nd5 {[%clk 0:00:32]} 26. Re1 {[%clk 0:00:24]}  Ba6 {[%clk 0:00:19]} 27. Rxb8 {[%clk 0:00:23]}  Rxb8 {[%clk 0:00:20]} 28. Ne5 {[%clk 0:00:24]}  Rd8 {[%clk 0:00:08]} 29. Bxd5 {[%clk 0:00:22]}  cxd5 {[%clk 0:00:07]} 30. d7 {[%clk 0:00:22]}  Bc4 {[%clk 0:00:02]} 31. Rb1 {[%clk 0:00:21]}  a6 {[%clk 0:00:03]} 32. Rb7 {[%clk 0:00:19]}  Kf6 {[%clk 0:00:03]} 33. f4 {[%clk 0:00:17]}  Ke6 {[%clk 0:00:03]} 34. Kf2 {[%clk 0:00:17]}  Kd6 {[%clk 0:00:03]} 35. Ke3 {[%clk 0:00:17]}  h6 {[%clk 0:00:03]} 36. h4 {[%clk 0:00:16]}  g5 {[%clk 0:00:03]} 37. hxg5 {[%clk 0:00:15]}  hxg5 {[%clk 0:00:04]} 38. fxg5 {[%clk 0:00:16]}  Ba2 {[%clk 0:00:03]} 39. g6 {[%clk 0:00:16]}  Bb1 {[%clk 0:00:04]} 40. Kf4 {[%clk 0:00:16]}  Bc2 {[%clk 0:00:03]} 41. Kg5 {[%clk 0:00:16]}  Bxa4 {[%clk 0:00:03]} 42. g7 {[%clk 0:00:16]}  Rg8 {[%clk 0:00:03]} 43. Kg6 {[%clk 0:00:15]}  Ke7 {[%clk 0:00:04]} 44. d8=Q+ {[%clk 0:00:14]}  Kxd8 {[%clk 0:00:04]} 45. Rb8+ {[%clk 0:00:15]}  Ke7 {[%clk 0:00:04]} 46. Rxg8 {[%clk 0:00:15]}  Be8+ {[%clk 0:00:04]} 47. Rxe8+ {[%clk 0:00:15]} 1-0


[Site "https://www.chess.com"]

[Event "Late Titled Tuesday Blitz February 8 2022"]
[White "Einarsson, Halldor Gretar"]
[Black "Zhou, Qiyu"]
[WhiteFideId "2300150"]
[BlackFideId "505161"]
[WhiteElo "2114"]
[BlackElo "1925"]
[Result "1-0"]
[Round "06"]
[TimeControl "180+1"]
[Date "2022.02.09"]
[WhiteClock "0:00:26"]
[BlackClock "0:00:05"]

1. d4 {[%clk 0:03:00]}  Nf6 {[%clk 0:02:59]} 2. c4 {[%clk 0:02:58]}  e6 {[%clk 0:02:58]} 3. g3 {[%clk 0:02:55]}  d5 {[%clk 0:02:57]} 4. Nf3 {[%clk 0:02:54]}  Bb4+ {[%clk 0:02:56]} 5. Bd2 {[%clk 0:02:50]}  Be7 {[%clk 0:02:56]} 6. Nc3 {[%clk 0:02:45]}  O-O {[%clk 0:02:56]} 7. Qc2 {[%clk 0:02:44]}  c6 {[%clk 0:02:54]} 8. e4 {[%clk 0:02:43]}  dxe4 {[%clk 0:02:51]} 9. Nxe4 {[%clk 0:02:42]}  Nxe4 {[%clk 0:02:46]} 10. Qxe4 {[%clk 0:02:41]}  Nd7 {[%clk 0:02:47]} 11. Bd3 {[%clk 0:02:39]}  Nf6 {[%clk 0:02:46]} 12. Qh4 {[%clk 0:02:39]}  g6 {[%clk 0:02:09]} 13. O-O-O {[%clk 0:01:36]}  Bd7 {[%clk 0:01:34]} 14. Kb1 {[%clk 0:01:28]}  b5 {[%clk 0:01:26]} 15. c5 {[%clk 0:01:15]}  Nh5 {[%clk 0:01:12]} 16. Qe4 {[%clk 0:01:10]}  Nf6 {[%clk 0:00:49]} 17. Qe2 {[%clk 0:01:05]}  Nd5 {[%clk 0:00:47]} 18. h4 {[%clk 0:01:02]}  h5 {[%clk 0:00:31]} 19. g4 {[%clk 0:00:58]}  hxg4 {[%clk 0:00:32]} 20. Ne5 {[%clk 0:00:57]}  Bf6 {[%clk 0:00:29]} 21. h5 {[%clk 0:00:43]}  Bxe5 {[%clk 0:00:19]} 22. dxe5 {[%clk 0:00:42]}  f5 {[%clk 0:00:13]} 23. exf6 {[%clk 0:00:38]}  Qxf6 {[%clk 0:00:12]} 24. hxg6 {[%clk 0:00:37]}  Qxf2 {[%clk 0:00:05]} 25. Qe5 {[%clk 0:00:33]}  Qf6 {[%clk 0:00:05]} 26. Qh5 {[%clk 0:00:30]}  Qg7 {[%clk 0:00:05]} 27. Bh6 {[%clk 0:00:26]} 1-0


[Site "https://www.chess.com"]

[Event "Late Titled Tuesday Blitz February 8 2022"]
[White "Garcia Martin, Marta"]
[Black "Kouskoutis, Georgios-Alexandros"]
[WhiteFideId "32084030"]
[BlackFideId "4234049"]
[WhiteElo "2102"]
[BlackElo "2130"]
[Result "1-0"]
[Round "06"]
[TimeControl "180+1"]
[Date "2022.02.09"]
[WhiteClock "0:00:14"]
[BlackClock "0:00:03"]

1. e4 {[%clk 0:03:00]}  c5 {[%clk 0:02:55]} 2. c3 {[%clk 0:03:00]}  g6 {[%clk 0:02:55]} 3. d4 {[%clk 0:03:00]}  cxd4 {[%clk 0:02:55]} 4. cxd4 {[%clk 0:03:01]}  d5 {[%clk 0:02:56]} 5. exd5 {[%clk 0:03:02]}  Nf6 {[%clk 0:02:56]} 6. Bb5+ {[%clk 0:02:59]}  Nbd7 {[%clk 0:02:50]} 7. Nc3 {[%clk 0:02:59]}  Bg7 {[%clk 0:02:51]} 8. Nf3 {[%clk 0:02:59]}  O-O {[%clk 0:02:50]} 9. O-O {[%clk 0:02:59]}  a6 {[%clk 0:02:50]} 10. Bxd7 {[%clk 0:02:50]}  Bxd7 {[%clk 0:02:49]} 11. Qb3 {[%clk 0:02:40]}  b5 {[%clk 0:02:12]} 12. Re1 {[%clk 0:02:40]}  Bf5 {[%clk 0:01:29]} 13. Ne5 {[%clk 0:02:36]}  Re8 {[%clk 0:01:29]} 14. h3 {[%clk 0:02:23]}  h5 {[%clk 0:00:48]} 15. Bg5 {[%clk 0:02:14]}  b4 {[%clk 0:00:37]} 16. Nc6 {[%clk 0:01:58]}  Qd7 {[%clk 0:00:27]} 17. Qxb4 {[%clk 0:01:51]}  e6 {[%clk 0:00:13]} 18. Ne5 {[%clk 0:01:30]}  Nxd5 {[%clk 0:00:13]} 19. Qb3 {[%clk 0:01:15]}  Qd6 {[%clk 0:00:06]} 20. Qb7 {[%clk 0:01:00]}  Qf8 {[%clk 0:00:03]} 21. Nxd5 {[%clk 0:00:56]}  exd5 {[%clk 0:00:04]} 22. Qxd5 {[%clk 0:00:51]}  Be6 {[%clk 0:00:04]} 23. Qf3 {[%clk 0:00:49]}  f6 {[%clk 0:00:04]} 24. Nxg6 {[%clk 0:00:47]}  Qf7 {[%clk 0:00:05]} 25. Bf4 {[%clk 0:00:35]}  Qxg6 {[%clk 0:00:04]} 26. Rxe6 {[%clk 0:00:35]}  Rxe6 {[%clk 0:00:04]} 27. Qxa8+ {[%clk 0:00:35]}  Kh7 {[%clk 0:00:05]} 28. Qf3 {[%clk 0:00:33]}  f5 {[%clk 0:00:03]} 29. d5 {[%clk 0:00:32]}  Re4 {[%clk 0:00:03]} 30. Rd1 {[%clk 0:00:29]}  Rd4 {[%clk 0:00:02]} 31. Rxd4 {[%clk 0:00:29]}  Bxd4 {[%clk 0:00:03]} 32. d6 {[%clk 0:00:28]}  Qf7 {[%clk 0:00:04]} 33. Qd3 {[%clk 0:00:17]}  Qd5 {[%clk 0:00:03]} 34. Be3 {[%clk 0:00:14]} 1-0


[Site "https://www.chess.com"]

[Event "Late Titled Tuesday Blitz February 8 2022"]
[White "Golubka, Petro"]
[Black "Kopczynski, Michal"]
[WhiteFideId "14114224"]
[BlackFideId "1124200"]
[WhiteElo "2392"]
[BlackElo "2235"]
[Result "1-0"]
[Round "06"]
[TimeControl "180+1"]
[Date "2022.02.09"]
[WhiteClock "0:00:20"]
[BlackClock "0:00:01"]

1. d4 {[%clk 0:02:53]}  Nf6 {[%clk 0:02:59]} 2. Bg5 {[%clk 0:02:17]}  g6 {[%clk 0:02:56]} 3. Nd2 {[%clk 0:02:04]}  Bg7 {[%clk 0:02:56]} 4. c3 {[%clk 0:02:02]}  d6 {[%clk 0:02:56]} 5. h4 {[%clk 0:01:55]}  c5 {[%clk 0:02:52]} 6. e3 {[%clk 0:01:54]}  Nc6 {[%clk 0:02:52]} 7. dxc5 {[%clk 0:01:52]}  dxc5 {[%clk 0:02:51]} 8. h5 {[%clk 0:01:50]}  Nxh5 {[%clk 0:02:47]} 9. Bc4 {[%clk 0:01:48]}  h6 {[%clk 0:02:35]} 10. Bh4 {[%clk 0:01:47]}  Nf6 {[%clk 0:02:30]} 11. Ngf3 {[%clk 0:01:45]}  Bg4 {[%clk 0:02:25]} 12. Qb3 {[%clk 0:01:42]}  O-O {[%clk 0:02:20]} 13. Bxf6 {[%clk 0:01:35]}  exf6 {[%clk 0:02:13]} 14. Qxb7 {[%clk 0:01:33]}  Na5 {[%clk 0:01:32]} 15. Qe4 {[%clk 0:01:30]}  f5 {[%clk 0:01:31]} 16. Qc2 {[%clk 0:01:23]}  Nxc4 {[%clk 0:01:24]} 17. Nxc4 {[%clk 0:01:22]}  Qd5 {[%clk 0:01:17]} 18. Ncd2 {[%clk 0:01:21]}  f4 {[%clk 0:01:14]} 19. e4 {[%clk 0:01:20]}  Qe6 {[%clk 0:01:10]} 20. Qb3 {[%clk 0:01:19]}  Qc6 {[%clk 0:00:59]} 21. O-O-O {[%clk 0:01:18]}  Rab8 {[%clk 0:00:59]} 22. Qd5 {[%clk 0:01:14]}  Qa4 {[%clk 0:00:57]} 23. e5 {[%clk 0:00:57]}  Be6 {[%clk 0:00:55]} 24. Qe4 {[%clk 0:00:52]}  Qxa2 {[%clk 0:00:53]} 25. Qb1 {[%clk 0:00:53]}  Qa5 {[%clk 0:00:36]} 26. Ne4 {[%clk 0:00:52]}  Bf5 {[%clk 0:00:29]} 27. Nh4 {[%clk 0:00:48]}  Bxe4 {[%clk 0:00:26]} 28. Qxe4 {[%clk 0:00:47]}  Bxe5 {[%clk 0:00:20]} 29. Qxe5 {[%clk 0:00:41]}  Qa1+ {[%clk 0:00:20]} 30. Kd2 {[%clk 0:00:42]}  Qxb2+ {[%clk 0:00:20]} 31. Kd3 {[%clk 0:00:43]}  Rfd8+ {[%clk 0:00:17]} 32. Ke4 {[%clk 0:00:40]}  Re8 {[%clk 0:00:17]} 33. Nf3 {[%clk 0:00:40]}  Qxc3 {[%clk 0:00:14]} 34. Kxf4 {[%clk 0:00:36]}  Rxe5 {[%clk 0:00:14]} 35. Nxe5 {[%clk 0:00:37]}  Qd4+ {[%clk 0:00:14]} 36. Rxd4 {[%clk 0:00:36]}  cxd4 {[%clk 0:00:14]} 37. Rd1 {[%clk 0:00:36]}  g5+ {[%clk 0:00:13]} 38. Ke4 {[%clk 0:00:35]}  Rb2 {[%clk 0:00:13]} 39. Nd3 {[%clk 0:00:33]}  Re2+ {[%clk 0:00:13]} 40. Kxd4 {[%clk 0:00:31]}  Kg7 {[%clk 0:00:13]} 41. Ra1 {[%clk 0:00:31]}  h5 {[%clk 0:00:12]} 42. Rxa7 {[%clk 0:00:31]}  h4 {[%clk 0:00:13]} 43. Ra5 {[%clk 0:00:32]}  Kg6 {[%clk 0:00:12]} 44. Re5 {[%clk 0:00:30]}  Rd2 {[%clk 0:00:10]} 45. Ke3 {[%clk 0:00:29]}  Rd1 {[%clk 0:00:09]} 46. Ke2 {[%clk 0:00:29]}  Ra1 {[%clk 0:00:09]} 47. Rb5 {[%clk 0:00:27]}  Ra2+ {[%clk 0:00:09]} 48. Ke3 {[%clk 0:00:27]}  f5 {[%clk 0:00:06]} 49. Rb6+ {[%clk 0:00:21]}  Kh5 {[%clk 0:00:06]} 50. Rf6 {[%clk 0:00:20]}  Kg4 {[%clk 0:00:05]} 51. Ne5+ {[%clk 0:00:20]}  Kh5 {[%clk 0:00:04]} 52. Rxf5 {[%clk 0:00:20]}  Ra3+ {[%clk 0:00:04]} 53. Ke4 {[%clk 0:00:20]}  h3 {[%clk 0:00:04]} 54. gxh3 {[%clk 0:00:19]}  Rxh3 {[%clk 0:00:05]} 55. f4 {[%clk 0:00:19]}  Rg3 {[%clk 0:00:04]} 56. Nf7 {[%clk 0:00:19]}  Kg6 {[%clk 0:00:01]} 57. Rxg5+ {[%clk 0:00:20]} 1-0


[Site "https://www.chess.com"]

[Event "Late Titled Tuesday Blitz February 8 2022"]
[White "Goryachkina, Aleksandra"]
[Black "Novikov, Evgenij"]
[WhiteFideId "4147103"]
[BlackFideId "4125380"]
[WhiteElo "2426"]
[BlackElo "2242"]
[Result "1-0"]
[Round "06"]
[TimeControl "180+1"]
[Date "2022.02.09"]
[WhiteClock "0:00:31"]
[BlackClock "0:00:01"]

1. e4 {[%clk 0:02:59]}  c5 {[%clk 0:02:57]} 2. Nf3 {[%clk 0:02:59]}  d6 {[%clk 0:02:52]} 3. c3 {[%clk 0:02:57]}  Nf6 {[%clk 0:02:51]} 4. Be2 {[%clk 0:02:57]}  Nc6 {[%clk 0:02:43]} 5. d4 {[%clk 0:02:57]}  cxd4 {[%clk 0:02:31]} 6. cxd4 {[%clk 0:02:57]}  Nxe4 {[%clk 0:02:31]} 7. d5 {[%clk 0:02:56]}  Qa5+ {[%clk 0:02:32]} 8. Nc3 {[%clk 0:02:56]}  Nxc3 {[%clk 0:01:51]} 9. bxc3 {[%clk 0:02:56]}  Ne5 {[%clk 0:01:42]} 10. Nxe5 {[%clk 0:02:55]}  Qxc3+ {[%clk 0:01:42]} 11. Bd2 {[%clk 0:02:55]}  Qxe5 {[%clk 0:01:42]} 12. O-O {[%clk 0:02:55]}  Bd7 {[%clk 0:01:24]} 13. Rb1 {[%clk 0:02:42]}  Qxd5 {[%clk 0:01:15]} 14. Bf3 {[%clk 0:02:36]}  Qxa2 {[%clk 0:01:16]} 15. Rxb7 {[%clk 0:02:33]}  Rd8 {[%clk 0:01:12]} 16. Be3 {[%clk 0:02:25]}  e6 {[%clk 0:01:06]} 17. Qd4 {[%clk 0:02:00]}  e5 {[%clk 0:00:49]} 18. Qc3 {[%clk 0:01:52]}  Be7 {[%clk 0:00:43]} 19. Ra1 {[%clk 0:00:58]}  Qe6 {[%clk 0:00:42]} 20. Raxa7 {[%clk 0:00:58]}  O-O {[%clk 0:00:34]} 21. h3 {[%clk 0:00:45]}  d5 {[%clk 0:00:25]} 22. Bb6 {[%clk 0:00:40]}  Rc8 {[%clk 0:00:20]} 23. Qd2 {[%clk 0:00:38]}  e4 {[%clk 0:00:08]} 24. Bg4 {[%clk 0:00:33]}  f5 {[%clk 0:00:07]} 25. Rxd7 {[%clk 0:00:33]}  Qxb6 {[%clk 0:00:02]} 26. Rxe7 {[%clk 0:00:32]}  Rf7 {[%clk 0:00:01]} 27. Rxf7 {[%clk 0:00:31]} 1-0


[Site "https://www.chess.com"]

[Event "Late Titled Tuesday Blitz February 8 2022"]
[White "Grigorov, Grigor"]
[Black "Garagulya, Konstantin"]
[WhiteFideId "2907313"]
[BlackFideId "4128931"]
[WhiteElo "2510"]
[BlackElo "2329"]
[Result "1-0"]
[Round "06"]
[TimeControl "180+1"]
[Date "2022.02.09"]
[WhiteClock "0:00:55"]
[BlackClock "0:00:07"]

1. d4 {[%clk 0:03:00]}  Nf6 {[%clk 0:02:58]} 2. Bg5 {[%clk 0:03:00]}  Ne4 {[%clk 0:02:58]} 3. Bf4 {[%clk 0:03:00]}  d5 {[%clk 0:02:58]} 4. e3 {[%clk 0:02:59]}  c6 {[%clk 0:02:57]} 5. Nd2 {[%clk 0:02:57]}  Nxd2 {[%clk 0:02:57]} 6. Qxd2 {[%clk 0:02:57]}  Bf5 {[%clk 0:02:53]} 7. Nf3 {[%clk 0:02:47]}  e6 {[%clk 0:02:52]} 8. Bd3 {[%clk 0:02:31]}  Bxd3 {[%clk 0:02:50]} 9. Qxd3 {[%clk 0:02:31]}  Qb6 {[%clk 0:02:51]} 10. O-O-O {[%clk 0:02:29]}  c5 {[%clk 0:02:50]} 11. dxc5 {[%clk 0:02:23]}  Bxc5 {[%clk 0:02:49]} 12. e4 {[%clk 0:02:23]}  dxe4 {[%clk 0:02:41]} 13. Qxe4 {[%clk 0:02:20]}  Nc6 {[%clk 0:02:37]} 14. Ne5 {[%clk 0:01:59]}  Nxe5 {[%clk 0:02:26]} 15. Bxe5 {[%clk 0:01:59]}  O-O {[%clk 0:02:26]} 16. Rd7 {[%clk 0:01:54]}  f6 {[%clk 0:02:08]} 17. Bd6 {[%clk 0:01:45]}  Bxd6 {[%clk 0:01:34]} 18. Qxe6+ {[%clk 0:01:45]}  Kh8 {[%clk 0:01:34]} 19. Qxd6 {[%clk 0:01:44]}  Qxf2 {[%clk 0:01:33]} 20. Qg3 {[%clk 0:01:34]}  Qxg3 {[%clk 0:01:26]} 21. hxg3 {[%clk 0:01:35]}  b6 {[%clk 0:01:11]} 22. Re1 {[%clk 0:01:33]}  a5 {[%clk 0:01:10]} 23. Ree7 {[%clk 0:01:33]}  Rg8 {[%clk 0:01:11]} 24. Rb7 {[%clk 0:01:32]}  h6 {[%clk 0:01:03]} 25. Rxb6 {[%clk 0:01:31]}  a4 {[%clk 0:00:59]} 26. Rbb7 {[%clk 0:01:29]}  a3 {[%clk 0:00:55]} 27. b3 {[%clk 0:01:15]}  Ra5 {[%clk 0:00:55]} 28. Ra7 {[%clk 0:01:09]}  Ra8 {[%clk 0:00:48]} 29. Rxa8+ {[%clk 0:01:07]}  Rxa8 {[%clk 0:00:48]} 30. c4 {[%clk 0:01:07]}  Kh7 {[%clk 0:00:43]} 31. Kc2 {[%clk 0:01:06]}  Kg6 {[%clk 0:00:43]} 32. b4 {[%clk 0:01:03]}  h5 {[%clk 0:00:32]} 33. c5 {[%clk 0:01:03]}  Kf5 {[%clk 0:00:26]} 34. c6 {[%clk 0:01:01]}  g5 {[%clk 0:00:18]} 35. b5 {[%clk 0:01:00]}  Kg4 {[%clk 0:00:18]} 36. c7 {[%clk 0:00:55]}  Kxg3 {[%clk 0:00:11]} 37. b6 {[%clk 0:00:55]}  h4 {[%clk 0:00:07]} 38. b7 {[%clk 0:00:55]} 1-0


[Site "https://www.chess.com"]

[Event "Late Titled Tuesday Blitz February 8 2022"]
[White "Gurevich, Dmitry"]
[Black "Zierk, Steven"]
[WhiteFideId "2000407"]
[BlackFideId "2034255"]
[WhiteElo "2506"]
[BlackElo "2494"]
[Result "0-1"]
[Round "06"]
[TimeControl "180+1"]
[Date "2022.02.08"]
[WhiteClock "0:00:19"]
[BlackClock "0:01:09"]

1. d4 {[%clk 0:03:00]}  d5 {[%clk 0:02:55]} 2. c4 {[%clk 0:02:57]}  dxc4 {[%clk 0:02:56]} 3. Nf3 {[%clk 0:02:54]}  Nf6 {[%clk 0:02:55]} 4. e3 {[%clk 0:02:52]}  e6 {[%clk 0:02:54]} 5. Bxc4 {[%clk 0:02:50]}  c5 {[%clk 0:02:55]} 6. O-O {[%clk 0:02:50]}  a6 {[%clk 0:02:56]} 7. a4 {[%clk 0:02:49]}  Nc6 {[%clk 0:02:53]} 8. Nc3 {[%clk 0:02:48]}  Be7 {[%clk 0:02:52]} 9. dxc5 {[%clk 0:02:47]}  Qxd1 {[%clk 0:02:53]} 10. Rxd1 {[%clk 0:02:46]}  Bxc5 {[%clk 0:02:54]} 11. h3 {[%clk 0:02:45]}  O-O {[%clk 0:02:53]} 12. e4 {[%clk 0:02:45]}  b6 {[%clk 0:02:49]} 13. Bf4 {[%clk 0:02:42]}  Bb7 {[%clk 0:02:42]} 14. Bd6 {[%clk 0:02:41]}  Rfd8 {[%clk 0:02:37]} 15. Bxc5 {[%clk 0:02:41]}  bxc5 {[%clk 0:02:38]} 16. e5 {[%clk 0:02:33]}  Nd7 {[%clk 0:02:31]} 17. Re1 {[%clk 0:02:10]}  Nd4 {[%clk 0:02:28]} 18. Nxd4 {[%clk 0:01:57]}  cxd4 {[%clk 0:02:29]} 19. Nd1 {[%clk 0:01:55]}  Rac8 {[%clk 0:02:27]} 20. b3 {[%clk 0:01:53]}  Nb6 {[%clk 0:02:22]} 21. Bd3 {[%clk 0:01:42]}  Nd5 {[%clk 0:02:21]} 22. Be4 {[%clk 0:01:38]}  Ba8 {[%clk 0:02:00]} 23. Nb2 {[%clk 0:01:34]}  Nc3 {[%clk 0:01:56]} 24. Bxa8 {[%clk 0:01:31]}  Rxa8 {[%clk 0:01:57]} 25. Nd3 {[%clk 0:01:29]}  a5 {[%clk 0:01:55]} 26. Kf1 {[%clk 0:01:00]}  Rab8 {[%clk 0:01:52]} 27. Ra3 {[%clk 0:01:00]}  g5 {[%clk 0:01:46]} 28. Rc1 {[%clk 0:00:53]}  Rdc8 {[%clk 0:01:42]} 29. Ke1 {[%clk 0:00:48]}  Nd5 {[%clk 0:01:41]} 30. Rxc8+ {[%clk 0:00:36]}  Rxc8 {[%clk 0:01:42]} 31. Kd2 {[%clk 0:00:35]}  Rc3 {[%clk 0:01:39]} 32. Nc1 {[%clk 0:00:30]}  Nb4 {[%clk 0:01:34]} 33. Ra1 {[%clk 0:00:27]}  Rc2+ {[%clk 0:01:31]} 34. Ke1 {[%clk 0:00:26]}  d3 {[%clk 0:01:30]} 35. Kd1 {[%clk 0:00:22]}  Rxf2 {[%clk 0:01:30]} 36. g4 {[%clk 0:00:20]}  Rh2 {[%clk 0:01:16]} 37. Rb1 {[%clk 0:00:19]}  d2 {[%clk 0:01:09]} 0-1


[Site "https://www.chess.com"]